bitfinex/quotes_SOLUSD_20250531
["timestamp","ask_amount","ask_price","bid_price","bid_amount"]
[1748682773512,15.99786536,154.85,154.77,1.5989]
[1748682774637,15.99786536,154.85,154.78,6.46078304]
[1748682776718,15.99786536,154.85,154.78,16.66078304]
[1748682779944,9.53996982,154.85,154.78,16.66078304]
[1748682780118,9.53996982,154.85,154.78,32.81274065]
[1748682781221,15.99792334,154.85,154.78,32.81274065]
[1748682782145,15.99792334,154.85,154.78,16.66078304]
[1748682782934,15.99792334,154.85,154.78,10.2]
[1748682783262,32.14257945,154.85,154.78,10.2]
[1748682783964,32.14257945,154.85,154.74,16.66218245]
[1748682783965,26.0,154.82,154.74,16.66218245]
[1748682784466,26.0,154.82,154.74,6.46218245]
[1748682785545,6.45953103,154.81,154.74,6.46218245]
[1748682786754,6.45953103,154.81,154.73,16.66275936]
[1748682790477,6.45926347,154.82,154.74,18.64964886]
[1748682790758,6.45883617,154.83,154.76,18.64964886]
[1748682790960,14.20400429,154.84,154.76,18.64964886]
[1748682792439,14.20400429,154.84,154.77,6.46120049]
[1748682792841,14.20400429,154.84,154.77,16.66120049]
[1748682796168,8.03600429,154.84,154.77,16.66120049]
[1748682802587,8.03600429,154.84,154.77,16.66096927]
[1748682804292,9.53996982,154.85,154.78,18.64964886]
[1748682804293,15.99791098,154.85,154.78,18.64964886]
[1748682804466,9.53996982,154.85,154.78,18.64964886]
[1748682805273,11.47424108,154.86,154.78,18.64964886]
[1748682806078,11.47424108,154.86,154.79,22.61127979]
[1748682807493,11.47424108,154.86,154.81,6.45953103]
[1748682809686,11.47424108,154.86,154.8,25.10959718]
[1748682811592,11.47424108,154.86,154.8,41.25946798]
[1748682814489,1.6057,154.88,154.8,129.05946798]
[1748682814811,6.45595497,154.9,154.82,18.64964886]
[1748682815118,6.45536117,154.91,154.84,6.45827951]
[1748682815287,9.64130767,154.91,154.84,6.45827951]
[1748682817009,0.28432314,154.92,154.84,6.45827951]
[1748682818109,6.73926762,154.92,154.84,6.45827951]
[1748682819021,32.73926762,154.92,154.84,6.45827951]
[1748682820197,6.45494448,154.92,154.85,18.64964886]
[1748682821822,6.45494448,154.92,154.86,6.45744543]
[1748682823723,6.45494448,154.92,154.84,6.45789641]
[1748682823724,9.76284321,154.92,154.84,6.45789641]
[1748682824023,26.0,154.91,154.84,6.45789641]
[1748682824225,26.0,154.91,154.83,10.2]
[1748682824726,65.44,154.91,154.83,10.2]
[1748682825023,6.45577792,154.9,154.83,10.2]
[1748682826923,22.59522272,154.9,154.83,10.2]
[1748682827325,1.92662314,154.89,154.83,10.2]
[1748682827533,8.26752314,154.89,154.79,36.2]
[1748682827921,8.26752314,154.89,154.79,16.66022621]
[1748682829025,22.59814049,154.88,154.79,16.66022621]
[1748682830447,48.59814049,154.88,154.79,16.66022621]
[1748682831334,22.60105901,154.86,154.79,10.2]
[1748682831945,26.0,154.85,154.79,10.2]
[1748682833341,6.45827951,154.84,154.79,10.2]
[1748682840953,6.45827951,154.84,154.79,16.6603268]
[1748682841626,22.60105901,154.86,154.79,10.2]
[1748682842349,6.45744543,154.86,154.79,16.66007711]
[1748682842548,6.45661157,154.88,154.8,18.64964886]
[1748682842752,16.13941841,154.91,154.8,138.51044886]
[1748682842953,6.45536117,154.91,154.81,0.28432314]
[1748682843746,6.45536117,154.91,154.83,18.64964886]
[1748682843954,6.45536117,154.91,154.84,10.2]
[1748682844573,6.45506274,154.92,154.84,10.2]
[1748682845999,6.45506274,154.92,154.85,6.45786244]
[1748682851885,34.11399638,154.93,154.86,18.64964886]
[1748682852077,6.45469638,154.93,154.86,20.18644886]
[1748682852381,32.85745714,154.94,154.86,26.30484886]
[1748682853178,32.85745714,154.94,154.87,6.45702847]
[1748682853373,32.85745714,154.94,154.88,18.64964886]
[1748682853374,26.4032186,154.94,154.88,18.64964886]
[1748682854462,11.21867161,154.94,154.88,18.64964886]
[1748682855163,17.67281066,154.94,154.88,18.64964886]
[1748682855371,17.67281066,154.94,154.89,16.63619471]
[1748682856671,17.67281066,154.94,154.89,10.18]
[1748682859392,33.80808883,154.94,154.89,10.18]
[1748682859595,33.80808883,154.94,154.86,7.6552]
[1748682863072,17.67281066,154.94,154.86,14.11264047]
[1748682863271,17.67281066,154.94,154.86,32.76228933]
[1748682863491,17.67281066,154.94,154.87,18.64964886]
[1748682864700,17.67281066,154.94,154.88,6.45661157]
[1748682867136,17.67281066,154.94,154.86,7.6552]
[1748682867137,26.0,154.91,154.85,10.18]
[1748682867431,26.0,154.91,154.81,17.8261]
[1748682868525,22.59522272,154.9,154.81,24.28547374]
[1748682869412,22.59522272,154.9,154.81,17.8261]
[1748682871100,26.0,154.87,154.81,10.18]
[1748682872328,26.0,154.87,154.78,92.96]
[1748682872520,65.42,154.87,154.78,92.96]
[1748682872910,22.60251855,154.85,154.77,11.7148]
[1748682874828,0.28432314,154.84,154.77,10.18]
[1748682875012,22.60543821,154.83,154.77,10.18]
[1748682875214,0.28432314,154.82,154.73,1.6583]
[1748682875533,0.28432314,154.82,154.73,11.8383]
[1748682876408,0.28432314,154.82,154.73,18.30100486]
[1748682877024,24.24563821,154.83,154.73,36.95065372]
[1748682877715,6.45953103,154.81,154.73,18.30100486]
[1748682878032,6.45953103,154.81,154.73,36.95065372]
[1748682878928,6.4591138,154.82,154.73,36.95065372]
[1748682882011,22.60689832,154.82,154.73,36.95065372]
[1748682889035,22.60689832,154.82,154.73,18.30100486]
[1748682889939,0.28432314,154.81,154.73,11.8383]
[1748682891649,6.45994832,154.8,154.73,11.8383]
[1748682893448,6.45994832,154.8,154.73,18.30111865]
[1748682893953,6.45994832,154.8,154.73,11.8383]
[1748682894255,6.45994832,154.8,154.73,18.30109372]
[1748682897235,6.45994832,154.8,154.73,11.8383]
[1748682898957,6.45994832,154.8,154.73,18.30114922]
[1748682899650,22.60981912,154.8,154.73,11.8383]
[1748682900535,22.60981912,154.8,154.73,10.18]
[1748682900729,26.0,154.77,154.69,1.509]
[1748682900929,0.28432314,154.76,154.69,1.509]
[1748682901735,6.46203554,154.75,154.69,1.509]
[1748682901940,6.46120049,154.77,154.69,26.62309409]
[1748682902135,6.46120049,154.77,154.7,18.64964886]
[1748682902347,6.46120049,154.77,154.69,7.97344523]
[1748682902754,48.61420171,154.77,154.69,7.97344523]
[1748682903072,48.61420171,154.77,154.68,22.92874327]
[1748682903073,0.28432314,154.76,154.68,22.92874327]
[1748682903273,0.28432314,154.76,154.68,16.64494327]
[1748682903970,6.46161798,154.76,154.68,16.64494327]
[1748682904467,9.73545217,154.76,154.68,16.64494327]
[1748682904648,32.46134646,154.77,154.69,18.64964886]
[1748682904852,32.46134646,154.77,154.69,24.93344886]
[1748682905761,32.46134646,154.77,154.7,6.46412411]
[1748682908475,35.72990338,154.77,154.7,6.46412411]
[1748682909058,51.8829046,154.77,154.69,12.74819666]
[1748682909275,51.8829046,154.77,154.69,6.46439666]
[1748682909478,51.8829046,154.77,154.68,10.18]
[1748682909479,0.28432314,154.76,154.68,16.64482107]
[1748682910081,6.46203554,154.75,154.68,16.64482107]
[1748682911967,22.61712439,154.75,154.68,10.18]
[1748682912172,22.61712439,154.75,154.68,16.6449334]
[1748682912487,22.61712439,154.75,154.68,6.4649334]
[1748682913582,6.46203554,154.75,154.68,6.4649334]
[1748682913767,0.28432314,154.76,154.68,6.4649334]
[1748682913768,6.46177403,154.76,154.68,6.4649334]
[1748682914066,6.46177403,154.76,154.67,41.27755664]
[1748682920473,2.72965495,154.77,154.67,41.27755664]
[1748682920694,16.43718547,154.78,154.67,67.27755664]
[1748682921597,19.66244213,154.78,154.67,67.27755664]
[1748682922173,6.46120049,154.77,154.67,67.27755664]
[1748682923278,0.28432314,154.76,154.67,32.4653779]
[1748682924493,0.28432314,154.76,154.66,11.689]
[1748682924494,8.0246,154.75,154.66,10.18]
[1748682924673,0.28432314,154.73,154.66,10.18]
[1748682925191,0.28432314,154.73,154.66,16.64571179]
[1748682925610,6.46245314,154.74,154.66,16.64571179]
[1748682926289,6.4621576,154.75,154.67,18.64964886]
[1748682926478,6.4621576,154.75,154.68,1.5154]
[1748682926880,6.46161798,154.76,154.69,6.46454198]
[1748682927485,6.4612925,154.77,154.69,6.46454198]
[1748682929207,6.4612925,154.77,154.69,22.62589694]
[1748682930206,6.4612925,154.77,154.69,32.80589694]
[1748682934109,6.4612925,154.77,154.69,16.64454198]
[1748682937520,6.4612925,154.77,154.7,18.64964886]
[1748682937689,6.46097115,154.78,154.71,6.46370628]
[1748682939013,21.15617215,154.79,154.71,6.46370628]
[1748682939309,17.99368412,154.79,154.72,18.64964886]
[1748682939809,11.53313834,154.79,154.73,6.4628708]
[1748682940229,17.99353021,154.79,154.73,6.4628708]
[1748682941942,17.99353021,154.79,154.72,6.46321948]
[1748682950125,17.99353021,154.79,154.72,16.64321948]
[1748682954337,34.14444435,154.79,154.72,10.18]
[1748682954541,35.74714435,154.79,154.72,10.18]
[1748682954734,22.61420171,154.77,154.68,18.16001581]
[1748682955136,0.28432314,154.76,154.68,10.18]
[1748682957031,22.61712439,154.75,154.68,10.18]
[1748682957234,22.61712439,154.75,154.67,6.46529594]
[1748682957843,22.61712439,154.75,154.66,23.12786425]
[1748682960756,22.61712439,154.75,154.66,16.64566425]
[1748682971370,6.46203554,154.75,154.67,18.64964886]
[1748682971546,6.46203554,154.75,154.69,18.64964886]
[1748682973051,22.6136677,154.78,154.7,6.46412411]
[1748682973775,0.28432314,154.77,154.68,26.0]
[1748682974651,18.933972,154.77,154.68,26.0]
[1748682974952,0.28432314,154.75,154.66,16.6456054]
[1748682975373,6.46245314,154.74,154.66,16.6456054]
[1748682982681,22.6181163,154.75,154.66,16.6456054]
[1748682983482,6.46203554,154.75,154.68,26.0]
[1748682983692,16.15306218,154.77,154.68,26.0]
[1748682983693,6.46153051,154.77,154.68,26.0]
[1748682984180,6.46153051,154.77,154.69,18.64964886]
[1748682984567,6.46153051,154.77,154.69,20.20024886]
[1748682984769,6.46153051,154.77,154.7,6.46412411]
[1748682985682,153.36097815,154.78,154.7,12.82722411]
[1748682986079,6.46097815,154.78,154.71,10.18]
[1748682986689,19.59637021,154.79,154.72,6.46328852]
[1748682989377,11.53313834,154.79,154.72,22.62150982]
[1748682990691,17.99354734,154.79,154.72,22.62150982]
[1748682991294,11.53313834,154.79,154.72,22.62150982]
[1748682992479,6.45661157,154.88,154.77,22.61420171]
[1748682992679,6.45661157,154.88,154.78,10.18]
[1748682993615,0.14216157,154.87,154.78,10.18]
[1748682993978,6.45744543,154.86,154.78,16.64043888]
[1748682995087,6.59919004,154.87,154.78,16.64043888]
[1748682995476,22.74176122,154.87,154.78,10.18]
[1748682995700,0.14216157,154.85,154.78,10.18]
[1748682996002,0.28432314,154.83,154.74,10.18]
[1748682996378,0.14216157,154.81,154.74,10.18]
[1748682996578,0.28432314,154.81,154.74,10.18]
[1748682997096,6.46078304,154.78,154.74,10.18]
[1748682997592,6.46078304,154.78,154.7,42.64410175]
[1748682998403,0.14216157,154.78,154.7,42.64410175]
[1748682998887,0.28432314,154.78,154.7,10.18]
[1748683000313,6.46120049,154.77,154.7,16.64405498]
[1748683000916,6.46120049,154.77,154.7,10.18]
[1748683001099,6.46120049,154.77,154.7,16.64407998]
[1748683003117,6.46120049,154.77,154.7,10.18]
[1748683003730,6.46120049,154.77,154.7,16.64410924]
[1748683004805,6.46120049,154.77,154.7,35.2937581]
[1748683005011,26.0,154.78,154.7,35.2937581]
[1748683006923,6.46120049,154.77,154.7,35.2937581]
[1748683008746,6.46120049,154.77,154.7,10.18]
[1748683009614,0.28432314,154.76,154.7,10.18]
[1748683010013,0.28432314,154.76,154.66,42.64574454]
[1748683010432,0.28432314,154.76,154.66,16.64574454]
[1748683010809,0.14216157,154.74,154.66,16.64574454]
[1748683012106,6.4628708,154.73,154.66,16.64574454]
[1748683014624,6.46203554,154.75,154.67,18.64964886]
[1748683014836,6.46120049,154.77,154.69,18.64964886]
[1748683016033,6.46120049,154.77,154.7,6.46412411]
[1748683020279,0.14216157,154.76,154.68,26.0]
[1748683020451,0.28432314,154.76,154.67,26.0]
[1748683021563,6.46203554,154.75,154.67,32.4653779]
[1748683023162,6.46203554,154.75,154.66,10.18]
[1748683023163,0.14216157,154.74,154.66,16.64565366]
[1748683023557,6.4628708,154.73,154.66,16.64565366]
[1748683023859,6.46120049,154.77,154.67,18.64964886]
[1748683024047,6.74552363,154.77,154.67,18.64964886]
[1748683024949,6.46120049,154.77,154.67,18.64964886]
[1748683025660,6.46120049,154.77,154.68,6.46495991]
[1748683026463,1.5754,154.79,154.71,26.0]
[1748683026765,8.03593004,154.79,154.72,10.18]
[1748683027666,8.03593004,154.79,154.73,6.4628708]
[1748683034072,8.03593004,154.79,154.72,16.64313856]
[1748683034443,26.28432314,154.78,154.72,10.18]
[1748683034767,26.28432314,154.78,154.69,6.46454087]
[1748683034970,0.14216157,154.76,154.69,6.46454087]
[1748683035475,6.46203554,154.75,154.69,6.46454087]
[1748683036153,6.4617824,154.76,154.69,6.46454087]
[1748683039687,6.46130302,154.77,154.7,18.64964886]
[1748683039861,6.46001085,154.8,154.72,18.64964886]
[1748683040386,6.4591138,154.82,154.74,18.64964886]
[1748683040587,153.5574,154.86,154.77,26.0]
[1748683040588,6.45827951,154.84,154.77,26.0]
[1748683040896,6.45804025,154.85,154.78,36.16]
[1748683041665,6.45744543,154.86,154.79,6.46036565]
[1748683043489,7.97417862,154.87,154.8,18.64964886]
[1748683043691,6.45717862,154.87,154.8,18.64964886]
[1748683044788,6.45661157,154.88,154.81,6.45953103]
[1748683051011,6.45661157,154.88,154.8,25.1095194]
[1748683053932,0.14216157,154.87,154.78,61.27035958]
[1748683054626,0.14216157,154.87,154.78,35.27035958]
[1748683054827,0.14216157,154.87,154.78,61.27035958]
[1748683055223,6.45744543,154.86,154.78,61.27035958]
[1748683056238,6.45744543,154.86,154.78,51.11035958]
[1748683056549,6.45744543,154.86,154.79,16.6201383]
[1748683060150,6.45661157,154.88,154.8,18.64964886]
[1748683061237,6.45661157,154.88,154.81,6.45953103]
[1748683061763,6.45661157,154.88,154.81,16.61953103]
[1748683062949,6.45661157,154.88,154.81,10.16]
[1748683062950,22.59814049,154.88,154.81,10.16]
[1748683066354,0.28432314,154.87,154.81,10.16]
[1748683067367,22.59814049,154.88,154.81,10.16]
[1748683068241,6.45661157,154.88,154.81,16.61940206]
[1748683074782,11.33412525,154.89,154.82,18.64964886]
[1748683074783,17.79043991,154.89,154.82,18.64964886]
[1748683075851,17.79043991,154.89,154.83,6.45869663]
[1748683081662,11.33412525,154.89,154.83,6.45869663]
[1748683083787,16.13535882,154.94,154.87,26.0]
[1748683083788,6.45429223,154.94,154.87,26.0]
[1748683083971,8.11055493,154.95,154.87,26.0]
[1748683084974,8.11055493,154.95,154.88,6.45661157]
[1748683085173,1.6567,154.95,154.88,6.45661157]
[1748683085371,6.45343941,154.96,154.88,6.45661157]
[1748683085372,6.45343941,154.96,154.88,22.59814049]
[1748683086263,1.5683,154.95,154.86,10.16]
[1748683086459,0.28432314,154.94,154.86,10.16]
[1748683087089,6.45452785,154.93,154.86,10.16]
[1748683087386,0.28432314,154.92,154.86,10.16]
[1748683087961,0.28432314,154.92,154.84,6.45802397]
[1748683088164,0.28432314,154.92,154.83,36.16]
[1748683088363,0.28432314,154.92,154.81,1.6121]
[1748683088364,0.28432314,154.9,154.81,1.6121]
[1748683088581,0.28432314,154.9,154.81,10.16]
[1748683089792,6.45619471,154.89,154.82,6.4591138]
[1748683090793,6.45577792,154.9,154.82,6.4591138]
[1748683091183,0.14216157,154.89,154.81,16.61944392]
[1748683091400,0.28432314,154.89,154.81,10.16]
[1748683091897,0.14216157,154.89,154.81,16.61949474]
[1748683092901,6.45661157,154.88,154.81,16.61949474]
[1748683093199,6.45577792,154.9,154.81,35.2691436]
[1748683093518,6.45577792,154.9,154.82,18.64964886]
[1748683094577,6.45577792,154.9,154.83,6.45869663]
[1748683094977,8.02381497,154.91,154.83,6.45869663]
[1748683095277,1.5883,154.95,154.84,18.64964886]
[1748683095698,0.14216157,154.94,154.84,18.64964886]
[1748683096198,6.59627283,154.94,154.84,18.64964886]
[1748683096584,6.59627283,154.94,154.85,6.45786244]
[1748683098294,0.14216157,154.93,154.85,26.0]
[1748683099321,6.45494448,154.92,154.84,6.45824639]
[1748683099629,6.45494448,154.92,154.84,32.45824639]
[1748683101452,6.45465393,154.93,154.85,18.64964886]
[1748683101598,6.45465393,154.93,154.86,10.16]
[1748683102829,0.14216157,154.92,154.86,10.16]
[1748683103045,26.28432314,154.92,154.86,10.16]
[1748683103437,26.28432314,154.92,154.83,8.06899343]
[1748683104110,6.45536117,154.91,154.83,8.06899343]
[1748683104644,0.28432314,154.9,154.82,36.16]
[1748683105217,0.28432314,154.9,154.82,42.61905681]
[1748683106235,6.45619471,154.89,154.82,42.61905681]
[1748683106826,0.14216157,154.92,154.83,18.64964886]
[1748683107021,6.45452785,154.93,154.83,18.64964886]
[1748683108125,6.45452785,154.93,154.84,6.45827951]
[1748683110832,22.59084747,154.93,154.84,6.45827951]
[1748683113545,0.28432314,154.92,154.83,6.45851652]
[1748683113846,0.28432314,154.92,154.82,16.61903208]
[1748683114657,0.14216157,154.9,154.82,16.61903208]
[1748683115753,6.45619471,154.89,154.82,16.61903208]
[1748683116068,0.14216157,154.88,154.82,10.16]
[1748683117758,6.45702847,154.87,154.82,10.16]
[1748683118862,22.59959965,154.87,154.82,10.16]
[1748683119060,0.14216157,154.86,154.78,36.16]
[1748683119283,0.28432314,154.86,154.78,10.16]
[1748683119888,6.45786244,154.85,154.78,16.62067811]
[1748683120060,6.45786244,154.85,154.78,10.16]
[1748683120368,22.60251855,154.85,154.78,10.16]
[1748683121661,22.60251855,154.85,154.78,16.62059616]
[1748683122264,6.45786244,154.85,154.78,16.62059616]
[1748683125377,16.14260909,154.87,154.78,16.62059616]
[1748683125378,6.45702847,154.87,154.79,32.1336]
[1748683126073,6.45702847,154.87,154.79,26.0]
[1748683126251,0.14216157,154.86,154.78,10.16]
[1748683126788,6.0,154.8,154.78,10.16]
[1748683127820,12.45996025,154.8,154.78,10.16]
[1748683128141,12.45996025,154.8,154.74,16.62232813]
[1748683129323,6.0,154.8,154.74,16.62232813]
[1748683129749,6.0,154.8,154.75,18.64964886]
[1748683130914,6.0,154.8,154.77,26.0]
[1748683131227,6.0,154.8,154.75,20.18654886]
[1748683131430,6.0,154.8,154.76,6.46161798]
[1748683140432,12.46002777,154.8,154.75,32.46187993]
[1748683140952,6.0,154.8,154.75,32.46187993]
[1748683141925,6.0,154.8,154.76,18.64964886]
[1748683142274,6.0,154.8,154.79,44.64964886]
[1748683142564,6.0,154.8,154.79,54.95181043]
[1748683143171,6.0,154.8,154.79,61.55433765]
[1748683143827,6.0,154.8,154.79,69.52083765]
[1748683145334,6.0,154.8,154.79,69.37867608]
[1748683145528,6.0,154.8,154.79,69.52083765]
[1748683146952,6.0,154.8,154.79,108.75867608]
[1748683147687,6.0,154.8,154.79,69.23651451]
[1748683147982,6.0,154.8,154.79,16.62036565]
[1748683152378,6.0,154.8,154.79,10.16]
[1748683153353,6.0,154.8,154.79,16.62036565]
[1748683155271,6.0,154.8,154.79,35.27001451]
[1748683158375,6.0,154.8,154.79,16.62036565]
[1748683164196,6.0,154.8,154.79,35.27001451]
[1748683165791,6.0,154.8,154.79,16.62036565]
[1748683166294,6.0,154.8,154.72,10.16]
[1748683166611,6.0,154.8,154.73,6.4628708]
[1748683166612,12.4600645,154.8,154.73,6.4628708]
[1748683168179,1.5822,154.79,154.72,36.16]
[1748683168380,1.5822,154.79,154.72,10.16]
[1748683168592,0.14216157,154.78,154.72,10.16]
[1748683168925,0.14216157,154.78,154.68,10.16]
[1748683168926,0.28432314,154.76,154.68,10.16]
[1748683169269,0.28432314,154.76,154.68,16.62492291]
[1748683169472,0.28432314,154.76,154.68,10.16]
[1748683169878,39.70432314,154.76,154.68,10.16]
[1748683170088,0.14216157,154.74,154.68,10.16]
[1748683170402,0.14216157,154.74,154.66,6.46566815]
[1748683170403,26.28432314,154.74,154.64,10.16]
[1748683170706,26.0,154.72,154.64,10.16]
[1748683171990,6.46370628,154.71,154.64,16.62623581]
[1748683174703,0.28432314,154.7,154.64,10.16]
[1748683174880,47.62542314,154.7,154.6,109.62819514]
[1748683176291,0.14216157,154.68,154.6,109.62819514]
[1748683177182,0.28432314,154.68,154.6,109.62819514]
[1748683178192,0.28432314,154.68,154.6,103.16]
[1748683178503,6.4653779,154.67,154.6,10.16]
[1748683178706,6.4653779,154.67,154.6,16.62819365]
[1748683179006,6.4653779,154.67,154.6,10.16]
[1748683179911,6.4653779,154.67,154.6,16.62817052]
[1748683181205,6.46621403,154.65,154.6,10.16]
[1748683182107,6.46621403,154.65,154.57,32.46941076]
[1748683182287,0.14216157,154.64,154.56,16.64991719]
[1748683182483,0.14216157,154.62,154.55,2.37142389]
[1748683182808,0.14216157,154.62,154.52,16.65152505]
[1748683182809,18.933972,154.62,154.52,16.65152505]
[1748683183114,0.28432314,154.6,154.52,16.65152505]
[1748683183282,0.14216157,154.6,154.52,16.65152505]
[1748683183596,6.46788694,154.61,154.52,16.65152505]
[1748683185292,6.46762428,154.62,154.53,18.64964886]
[1748683185986,6.46762428,154.62,154.54,26.0]
[1748683186187,6.46762428,154.62,154.55,6.47039792]
[1748683189194,6.46762428,154.62,154.54,6.47065858]
[1748683189393,0.14216157,154.61,154.53,6.47110296]
[1748683189810,6.4683053,154.6,154.53,6.47110296]
[1748683192319,0.14216157,154.57,154.52,10.18]
[1748683194207,6.46997929,154.56,154.52,10.18]
[1748683194403,6.46997929,154.56,154.5,125.5323264]
[1748683194612,6.46997929,154.56,154.49,6.47274847]
[1748683195629,0.14216157,154.55,154.48,10.18]
[1748683196430,6.47081661,154.54,154.48,16.65321904]
[1748683197735,6.47081661,154.54,154.48,10.18]
[1748683197935,6.47081661,154.54,154.48,16.65322924]
[1748683201442,0.14216157,154.53,154.45,6.1463]
[1748683201644,0.14216157,154.53,154.44,36.2]
[1748683201645,0.28432314,154.53,154.44,36.2]
[1748683202033,148.5257,154.58,154.48,26.0]
[1748683202213,8.09490015,154.58,154.49,28.84964886]
[1748683202417,6.46920015,154.58,154.5,6.4724919]
[1748683203732,6.46920015,154.58,154.5,22.65372167]
[1748683204341,6.61088529,154.59,154.5,22.65372167]
[1748683208746,6.61088529,154.59,154.52,6.47165415]
[1748683211761,23.41926219,154.6,154.52,48.65078953]
[1748683212374,16.95085484,154.6,154.52,48.65078953]
[1748683214063,16.95085484,154.6,154.53,18.64964886]
[1748683214250,16.95085484,154.6,154.54,10.22]
[1748683215751,16.95085484,154.6,154.55,6.47039792]
[1748683219565,16.95085484,154.6,154.55,22.64639274]
[1748683219747,16.95085484,154.6,154.55,48.64639274]
[1748683219951,16.95085484,154.6,154.55,55.28719274]
[1748683220365,16.95085484,154.6,154.55,32.47039792]
[1748683222856,65.54,154.65,154.55,48.64639274]
[1748683223056,0.14216157,154.64,154.55,48.64639274]
[1748683223399,6.60891957,154.64,154.55,48.64639274]
[1748683224176,22.77550001,154.64,154.55,32.47039792]
[1748683225356,6.60891957,154.64,154.55,32.47039792]
[1748683225796,6.60891957,154.64,154.55,48.64639274]
[1748683226091,6.60855134,154.65,154.55,48.64639274]
[1748683226401,6.46638977,154.65,154.55,48.64639274]
[1748683228059,6.46705037,154.63,154.55,48.64639274]
[1748683229065,6.60879374,154.64,154.55,48.64639274]
[1748683233985,22.77537418,154.64,154.55,32.47039792]
[1748683234361,7.646,154.63,154.55,32.47039792]
[1748683235187,6.46746863,154.62,154.55,32.47039792]
[1748683235488,8.06946863,154.62,154.55,32.47039792]
[1748683239170,8.06946863,154.62,154.54,10.22]
[1748683239171,7.93032314,154.61,154.5,26.40113274]
[1748683239372,1.602,154.58,154.53,26.0]
[1748683239995,1.602,154.58,154.5,26.40113274]
[1748683240195,1.602,154.58,154.53,26.0]
[1748683240196,6.46956071,154.57,154.53,26.0]
[1748683240693,8.07124637,154.58,154.53,26.0]
[1748683240872,1.602,154.58,154.53,26.0]
[1748683241193,8.07114292,154.58,154.53,26.0]
[1748683241390,1.602,154.58,154.53,26.0]
[1748683242278,1.602,154.58,154.54,6.47081661]
[1748683242673,8.07121499,154.58,154.51,6.472073]
[1748683242875,8.07121499,154.58,154.51,32.472073]
[1748683243491,1.602,154.58,154.51,48.65225551]
[1748683247404,8.07124981,154.58,154.51,48.65225551]
[1748683249405,1.602,154.58,154.51,48.65225551]
[1748683250598,8.07117532,154.58,154.51,48.65225551]
[1748683252314,1.602,154.58,154.51,48.65225551]
[1748683254202,8.07115813,154.58,154.51,48.65225551]
[1748683254418,1.602,154.58,154.51,48.65225551]
[1748683255125,8.0711851,154.58,154.51,48.65225551]
[1748683256099,8.0711851,154.58,154.51,32.472073]
[1748683256502,8.0711851,154.58,154.5,16.69219161]
[1748683259724,6.46997929,154.56,154.5,10.22]
[1748683261239,0.14216157,154.55,154.46,16.67416806]
[1748683261430,1.81162314,154.55,154.46,42.67416806]
[1748683261606,6.47081661,154.54,154.46,42.67416806]
[1748683262724,6.47081661,154.54,154.46,10.2]
[1748683262725,0.28432314,154.53,154.46,10.2]
[1748683263036,0.28432314,154.53,154.44,6.47500647]
[1748683263037,6.58232314,154.53,154.44,6.47500647]
[1748683263811,6.47165415,154.52,154.44,6.47500647]
[1748683264816,6.4724919,154.5,154.44,6.47500647]
[1748683266241,6.4724919,154.5,154.43,32.4752911]
[1748683272834,7.99945667,154.51,154.43,48.66385549]
[1748683273034,11.20205318,154.54,154.48,26.0]
[1748683273237,8.01344887,154.56,154.48,26.0]
[1748683273427,1.5434,154.56,154.5,26.0]
[1748683273624,8.01341938,154.56,154.5,26.0]
[1748683274337,8.01341938,154.56,154.47,36.18]
[1748683274645,27.40622255,154.56,154.47,36.18]
[1748683274824,6.47081661,154.54,154.47,16.65369263]
[1748683279340,6.47081661,154.54,154.47,10.18]
[1748683279639,6.47081661,154.54,154.47,16.65356761]
[1748683281241,6.47081661,154.54,154.47,42.65356761]
[1748683281461,6.47039792,154.55,154.47,42.65356761]
[1748683286567,6.47039792,154.55,154.47,58.83793998]
[1748683287065,6.47039792,154.55,154.47,42.65356761]
[1748683287230,0.28432314,154.54,154.47,10.18]
[1748683287427,26.28432314,154.54,154.45,6.47439442]
[1748683288374,26.28432314,154.54,154.44,6.47486356]
[1748683288548,6.472073,154.51,154.44,6.47486356]
[1748683289134,6.472073,154.51,154.43,16.65533753]
[1748683289135,22.65225551,154.51,154.43,16.65533753]
[1748683292179,22.65225551,154.51,154.43,10.18]
[1748683292871,22.65225551,154.51,154.43,16.65535337]
[1748683294897,6.47291086,154.49,154.43,10.18]
[1748683295081,6.47291086,154.49,154.4,1.6504]
[1748683295951,0.28432314,154.48,154.4,8.12691089]
[1748683296956,0.28432314,154.48,154.39,10.18]
[1748683296957,22.65812131,154.47,154.39,10.18]
[1748683297278,62.13812131,154.47,154.39,16.65695108]